{"text_format":"3","workbook":"xlsx","n_sheets":3,"sheets":["Start","Budgetwiel","Gegevens"],"not_rendered":{"charts":1,"defined_names":5},"read":"whole","date_system":"1900"}

{"sheet":"Start","index":0,"n_rows":7,"n_cols":2,"rows_kept":7}
[null,"Over de sjabloon"]
[null,"Houd uw maandelijkse uitgaven en besparingen bij met deze sjabloon."]
[null,"Voer onkostengegevens in de tabel in en geef uw maandelijkse inkomsten op om de besparingen te berekenen."]
[null,"Het ringdiagram met uitgaven en besparingen wordt automatisch bijgewerkt."]
[null,"Opmerking:"]
[null,"Kolom A van het werkblad BUDGETWIEL bevat aanvullende instructies. Deze tekst is opzettelijk verborgen. Als u tekst wilt verwijderen, selecteert u kolom A en drukt u op Delete. Als u de tekst zichtbaar wilt maken, selecteert u kolom A en wijzigt u de tekenkleur."]
[null,"Als u meer wilt weten over tabellen, drukt u in een tabel op Shift en F10 en selecteert u de optie TABEL en vervolgens ALTERNATIEVE TEKST."]

{"sheet":"Budgetwiel","index":1,"n_rows":23,"n_cols":7,"rows_kept":23,"merged":[[0,1,0,2],[0,3,0,6]]}
[null,"Budgetwiel",null,"Vul de tabel in deze sjabloon in. De grafiek geeft uw maandelijkse uitgaven weer in verhouding tot uw maandelijks inkomen. Er worden ook percentages berekend om u te laten zien hoeveel u bespaart of bespaard hebt."]
[null,"Maandelijks \nInkomsten",{"$nulls":4},"Besparingen \nBedrag"]
[null,{"v":5738,"d":"€ 5,738"},{"$nulls":4},{"$f":"Spaargeld","v":{"v":2777,"d":"€ 2,777"}}]
[{"$nulls":6},"Berekende waarde \n(automatisch)"]
[]
[null,"Onkosten","Categorie","Bedrag","Frequentie","Maandelijks bedrag","% van totaal"]
[null,"Verzekering","Vervoer",{"v":300,"d":"€ 300"},"Elke 6 maanden",{"$f":"IF(Onkosten[[#This Row],[Bedrag]]>0,IF(Onkosten[[#This Row],[Frequentie]]<>\"\",ROUND(IF(Onkosten[[#This Row],[Frequentie]]=\"Maandelijks\",Onkosten[Bedrag],IF(Onkosten[[#This Row],[Frequentie]]=\"Wekelijks\",Onkosten[[#This Row],[Bedrag]]*4,IF(Onkosten[[#This Row],[Frequentie]]=\"Kwartaal\",Onkosten[[#This Row],[Bedrag]]/3,IF(Onkosten[[#This Row],[Frequentie]]=\"Elke 6 maanden\",Onkosten[[#This Row],[Bedrag]]/6,IF(Onkosten[[#This Row],[Frequentie]]=\"Jaarlijks\",Onkosten[[#This Row],[Bedrag]]/12,IF(Onkosten[[#This Row],[Frequentie]]=\"Elke andere week\",Onkosten[[#This Row],[Bedrag]]*2,IF(Onkosten[[#This Row],[Frequentie]]=\"Elke andere maand\",Onkosten[[#This Row],[Bedrag]]/2,\"\"))))))),0),\"\"),\"\")","v":{"v":50,"d":"€ 50"}},{"$f":"IF(Onkosten[[#This Row],[Maandelijks bedrag]]<>\"\",Onkosten[[#This Row],[Maandelijks bedrag]]/Inkomsten,\"\")","v":{"v":0.00871383757406762,"d":"1%"}}]
[null,"Gas","Vervoer",{"v":25,"d":"€ 25"},"Wekelijks",{"$f":"IF(Onkosten[[#This Row],[Bedrag]]>0,IF(Onkosten[[#This Row],[Frequentie]]<>\"\",ROUND(IF(Onkosten[[#This Row],[Frequentie]]=\"Maandelijks\",Onkosten[Bedrag],IF(Onkosten[[#This Row],[Frequentie]]=\"Wekelijks\",Onkosten[[#This Row],[Bedrag]]*4,IF(Onkosten[[#This Row],[Frequentie]]=\"Kwartaal\",Onkosten[[#This Row],[Bedrag]]/3,IF(Onkosten[[#This Row],[Frequentie]]=\"Elke 6 maanden\",Onkosten[[#This Row],[Bedrag]]/6,IF(Onkosten[[#This Row],[Frequentie]]=\"Jaarlijks\",Onkosten[[#This Row],[Bedrag]]/12,IF(Onkosten[[#This Row],[Frequentie]]=\"Elke andere week\",Onkosten[[#This Row],[Bedrag]]*2,IF(Onkosten[[#This Row],[Frequentie]]=\"Elke andere maand\",Onkosten[[#This Row],[Bedrag]]/2,\"\"))))))),0),\"\"),\"\")","v":{"v":100,"d":"€ 100"}},{"$f":"IF(Onkosten[[#This Row],[Maandelijks bedrag]]<>\"\",Onkosten[[#This Row],[Maandelijks bedrag]]/Inkomsten,\"\")","v":{"v":0.01742767514813524,"d":"2%"}}]
[null,"Afbetaling auto","Vervoer",{"v":200,"d":"€ 200"},"Maandelijks",{"$f":"IF(Onkosten[[#This Row],[Bedrag]]>0,IF(Onkosten[[#This Row],[Frequentie]]<>\"\",ROUND(IF(Onkosten[[#This Row],[Frequentie]]=\"Maandelijks\",Onkosten[Bedrag],IF(Onkosten[[#This Row],[Frequentie]]=\"Wekelijks\",Onkosten[[#This Row],[Bedrag]]*4,IF(Onkosten[[#This Row],[Frequentie]]=\"Kwartaal\",Onkosten[[#This Row],[Bedrag]]/3,IF(Onkosten[[#This Row],[Frequentie]]=\"Elke 6 maanden\",Onkosten[[#This Row],[Bedrag]]/6,IF(Onkosten[[#This Row],[Frequentie]]=\"Jaarlijks\",Onkosten[[#This Row],[Bedrag]]/12,IF(Onkosten[[#This Row],[Frequentie]]=\"Elke andere week\",Onkosten[[#This Row],[Bedrag]]*2,IF(Onkosten[[#This Row],[Frequentie]]=\"Elke andere maand\",Onkosten[[#This Row],[Bedrag]]/2,\"\"))))))),0),\"\"),\"\")","v":{"v":200,"d":"€ 200"}},{"$f":"IF(Onkosten[[#This Row],[Maandelijks bedrag]]<>\"\",Onkosten[[#This Row],[Maandelijks bedrag]]/Inkomsten,\"\")","v":{"v":0.03485535029627048,"d":"3%"}}]
[null,"Hypotheek","Huis",{"v":1600,"d":"€ 1,600"},"Maandelijks",{"$f":"IF(Onkosten[[#This Row],[Bedrag]]>0,IF(Onkosten[[#This Row],[Frequentie]]<>\"\",ROUND(IF(Onkosten[[#This Row],[Frequentie]]=\"Maandelijks\",Onkosten[Bedrag],IF(Onkosten[[#This Row],[Frequentie]]=\"Wekelijks\",Onkosten[[#This Row],[Bedrag]]*4,IF(Onkosten[[#This Row],[Frequentie]]=\"Kwartaal\",Onkosten[[#This Row],[Bedrag]]/3,IF(Onkosten[[#This Row],[Frequentie]]=\"Elke 6 maanden\",Onkosten[[#This Row],[Bedrag]]/6,IF(Onkosten[[#This Row],[Frequentie]]=\"Jaarlijks\",Onkosten[[#This Row],[Bedrag]]/12,IF(Onkosten[[#This Row],[Frequentie]]=\"Elke andere week\",Onkosten[[#This Row],[Bedrag]]*2,IF(Onkosten[[#This Row],[Frequentie]]=\"Elke andere maand\",Onkosten[[#This Row],[Bedrag]]/2,\"\"))))))),0),\"\"),\"\")","v":{"v":1600,"d":"€ 1,600"}},{"$f":"IF(Onkosten[[#This Row],[Maandelijks bedrag]]<>\"\",Onkosten[[#This Row],[Maandelijks bedrag]]/Inkomsten,\"\")","v":{"v":0.27884280237016384,"d":"28%"}}]
[null,"Tv","Huis",{"v":60,"d":"€ 60"},"Maandelijks",{"$f":"IF(Onkosten[[#This Row],[Bedrag]]>0,IF(Onkosten[[#This Row],[Frequentie]]<>\"\",ROUND(IF(Onkosten[[#This Row],[Frequentie]]=\"Maandelijks\",Onkosten[Bedrag],IF(Onkosten[[#This Row],[Frequentie]]=\"Wekelijks\",Onkosten[[#This Row],[Bedrag]]*4,IF(Onkosten[[#This Row],[Frequentie]]=\"Kwartaal\",Onkosten[[#This Row],[Bedrag]]/3,IF(Onkosten[[#This Row],[Frequentie]]=\"Elke 6 maanden\",Onkosten[[#This Row],[Bedrag]]/6,IF(Onkosten[[#This Row],[Frequentie]]=\"Jaarlijks\",Onkosten[[#This Row],[Bedrag]]/12,IF(Onkosten[[#This Row],[Frequentie]]=\"Elke andere week\",Onkosten[[#This Row],[Bedrag]]*2,IF(Onkosten[[#This Row],[Frequentie]]=\"Elke andere maand\",Onkosten[[#This Row],[Bedrag]]/2,\"\"))))))),0),\"\"),\"\")","v":{"v":60,"d":"€ 60"}},{"$f":"IF(Onkosten[[#This Row],[Maandelijks bedrag]]<>\"\",Onkosten[[#This Row],[Maandelijks bedrag]]/Inkomsten,\"\")","v":{"v":0.010456605088881143,"d":"1%"}}]
[null,"Film","Amusement",{"v":70,"d":"€ 70"},"Maandelijks",{"$f":"IF(Onkosten[[#This Row],[Bedrag]]>0,IF(Onkosten[[#This Row],[Frequentie]]<>\"\",ROUND(IF(Onkosten[[#This Row],[Frequentie]]=\"Maandelijks\",Onkosten[Bedrag],IF(Onkosten[[#This Row],[Frequentie]]=\"Wekelijks\",Onkosten[[#This Row],[Bedrag]]*4,IF(Onkosten[[#This Row],[Frequentie]]=\"Kwartaal\",Onkosten[[#This Row],[Bedrag]]/3,IF(Onkosten[[#This Row],[Frequentie]]=\"Elke 6 maanden\",Onkosten[[#This Row],[Bedrag]]/6,IF(Onkosten[[#This Row],[Frequentie]]=\"Jaarlijks\",Onkosten[[#This Row],[Bedrag]]/12,IF(Onkosten[[#This Row],[Frequentie]]=\"Elke andere week\",Onkosten[[#This Row],[Bedrag]]*2,IF(Onkosten[[#This Row],[Frequentie]]=\"Elke andere maand\",Onkosten[[#This Row],[Bedrag]]/2,\"\"))))))),0),\"\"),\"\")","v":{"v":70,"d":"€ 70"}},{"$f":"IF(Onkosten[[#This Row],[Maandelijks bedrag]]<>\"\",Onkosten[[#This Row],[Maandelijks bedrag]]/Inkomsten,\"\")","v":{"v":0.012199372603694667,"d":"1%"}}]
[null,"Sneakers","Div.",{"v":300,"d":"€ 300"},"Jaarlijks",{"$f":"IF(Onkosten[[#This Row],[Bedrag]]>0,IF(Onkosten[[#This Row],[Frequentie]]<>\"\",ROUND(IF(Onkosten[[#This Row],[Frequentie]]=\"Maandelijks\",Onkosten[Bedrag],IF(Onkosten[[#This Row],[Frequentie]]=\"Wekelijks\",Onkosten[[#This Row],[Bedrag]]*4,IF(Onkosten[[#This Row],[Frequentie]]=\"Kwartaal\",Onkosten[[#This Row],[Bedrag]]/3,IF(Onkosten[[#This Row],[Frequentie]]=\"Elke 6 maanden\",Onkosten[[#This Row],[Bedrag]]/6,IF(Onkosten[[#This Row],[Frequentie]]=\"Jaarlijks\",Onkosten[[#This Row],[Bedrag]]/12,IF(Onkosten[[#This Row],[Frequentie]]=\"Elke andere week\",Onkosten[[#This Row],[Bedrag]]*2,IF(Onkosten[[#This Row],[Frequentie]]=\"Elke andere maand\",Onkosten[[#This Row],[Bedrag]]/2,\"\"))))))),0),\"\"),\"\")","v":{"v":25,"d":"€ 25"}},{"$f":"IF(Onkosten[[#This Row],[Maandelijks bedrag]]<>\"\",Onkosten[[#This Row],[Maandelijks bedrag]]/Inkomsten,\"\")","v":{"v":0.00435691878703381,"d":"0%"}}]
[null,"Hondenvoer","Div.",{"v":60,"d":"€ 60"},"Maandelijks",{"$f":"IF(Onkosten[[#This Row],[Bedrag]]>0,IF(Onkosten[[#This Row],[Frequentie]]<>\"\",ROUND(IF(Onkosten[[#This Row],[Frequentie]]=\"Maandelijks\",Onkosten[Bedrag],IF(Onkosten[[#This Row],[Frequentie]]=\"Wekelijks\",Onkosten[[#This Row],[Bedrag]]*4,IF(Onkosten[[#This Row],[Frequentie]]=\"Kwartaal\",Onkosten[[#This Row],[Bedrag]]/3,IF(Onkosten[[#This Row],[Frequentie]]=\"Elke 6 maanden\",Onkosten[[#This Row],[Bedrag]]/6,IF(Onkosten[[#This Row],[Frequentie]]=\"Jaarlijks\",Onkosten[[#This Row],[Bedrag]]/12,IF(Onkosten[[#This Row],[Frequentie]]=\"Elke andere week\",Onkosten[[#This Row],[Bedrag]]*2,IF(Onkosten[[#This Row],[Frequentie]]=\"Elke andere maand\",Onkosten[[#This Row],[Bedrag]]/2,\"\"))))))),0),\"\"),\"\")","v":{"v":60,"d":"€ 60"}},{"$f":"IF(Onkosten[[#This Row],[Maandelijks bedrag]]<>\"\",Onkosten[[#This Row],[Maandelijks bedrag]]/Inkomsten,\"\")","v":{"v":0.010456605088881143,"d":"1%"}}]
[null,"Dierenverzekering","Div.",{"v":70,"d":"€ 70"},"Jaarlijks",{"$f":"IF(Onkosten[[#This Row],[Bedrag]]>0,IF(Onkosten[[#This Row],[Frequentie]]<>\"\",ROUND(IF(Onkosten[[#This Row],[Frequentie]]=\"Maandelijks\",Onkosten[Bedrag],IF(Onkosten[[#This Row],[Frequentie]]=\"Wekelijks\",Onkosten[[#This Row],[Bedrag]]*4,IF(Onkosten[[#This Row],[Frequentie]]=\"Kwartaal\",Onkosten[[#This Row],[Bedrag]]/3,IF(Onkosten[[#This Row],[Frequentie]]=\"Elke 6 maanden\",Onkosten[[#This Row],[Bedrag]]/6,IF(Onkosten[[#This Row],[Frequentie]]=\"Jaarlijks\",Onkosten[[#This Row],[Bedrag]]/12,IF(Onkosten[[#This Row],[Frequentie]]=\"Elke andere week\",Onkosten[[#This Row],[Bedrag]]*2,IF(Onkosten[[#This Row],[Frequentie]]=\"Elke andere maand\",Onkosten[[#This Row],[Bedrag]]/2,\"\"))))))),0),\"\"),\"\")","v":{"v":6,"d":"€ 6"}},{"$f":"IF(Onkosten[[#This Row],[Maandelijks bedrag]]<>\"\",Onkosten[[#This Row],[Maandelijks bedrag]]/Inkomsten,\"\")","v":{"v":1.0456605088881143E-3,"d":"0%"}}]
[null,"Boodschappen","Eten en drinken",{"v":100,"d":"€ 100"},"Wekelijks",{"$f":"IF(Onkosten[[#This Row],[Bedrag]]>0,IF(Onkosten[[#This Row],[Frequentie]]<>\"\",ROUND(IF(Onkosten[[#This Row],[Frequentie]]=\"Maandelijks\",Onkosten[Bedrag],IF(Onkosten[[#This Row],[Frequentie]]=\"Wekelijks\",Onkosten[[#This Row],[Bedrag]]*4,IF(Onkosten[[#This Row],[Frequentie]]=\"Kwartaal\",Onkosten[[#This Row],[Bedrag]]/3,IF(Onkosten[[#This Row],[Frequentie]]=\"Elke 6 maanden\",Onkosten[[#This Row],[Bedrag]]/6,IF(Onkosten[[#This Row],[Frequentie]]=\"Jaarlijks\",Onkosten[[#This Row],[Bedrag]]/12,IF(Onkosten[[#This Row],[Frequentie]]=\"Elke andere week\",Onkosten[[#This Row],[Bedrag]]*2,IF(Onkosten[[#This Row],[Frequentie]]=\"Elke andere maand\",Onkosten[[#This Row],[Bedrag]]/2,\"\"))))))),0),\"\"),\"\")","v":{"v":400,"d":"€ 400"}},{"$f":"IF(Onkosten[[#This Row],[Maandelijks bedrag]]<>\"\",Onkosten[[#This Row],[Maandelijks bedrag]]/Inkomsten,\"\")","v":{"v":0.06971070059254096,"d":"7%"}}]
[null,"Koffie","Eten en drinken",{"v":25,"d":"€ 25"},"Wekelijks",{"$f":"IF(Onkosten[[#This Row],[Bedrag]]>0,IF(Onkosten[[#This Row],[Frequentie]]<>\"\",ROUND(IF(Onkosten[[#This Row],[Frequentie]]=\"Maandelijks\",Onkosten[Bedrag],IF(Onkosten[[#This Row],[Frequentie]]=\"Wekelijks\",Onkosten[[#This Row],[Bedrag]]*4,IF(Onkosten[[#This Row],[Frequentie]]=\"Kwartaal\",Onkosten[[#This Row],[Bedrag]]/3,IF(Onkosten[[#This Row],[Frequentie]]=\"Elke 6 maanden\",Onkosten[[#This Row],[Bedrag]]/6,IF(Onkosten[[#This Row],[Frequentie]]=\"Jaarlijks\",Onkosten[[#This Row],[Bedrag]]/12,IF(Onkosten[[#This Row],[Frequentie]]=\"Elke andere week\",Onkosten[[#This Row],[Bedrag]]*2,IF(Onkosten[[#This Row],[Frequentie]]=\"Elke andere maand\",Onkosten[[#This Row],[Bedrag]]/2,\"\"))))))),0),\"\"),\"\")","v":{"v":100,"d":"€ 100"}},{"$f":"IF(Onkosten[[#This Row],[Maandelijks bedrag]]<>\"\",Onkosten[[#This Row],[Maandelijks bedrag]]/Inkomsten,\"\")","v":{"v":0.01742767514813524,"d":"2%"}}]
[null,"Klimtuig","Amusement",{"v":170,"d":"€ 170"},"Jaarlijks",{"$f":"IF(Onkosten[[#This Row],[Bedrag]]>0,IF(Onkosten[[#This Row],[Frequentie]]<>\"\",ROUND(IF(Onkosten[[#This Row],[Frequentie]]=\"Maandelijks\",Onkosten[Bedrag],IF(Onkosten[[#This Row],[Frequentie]]=\"Wekelijks\",Onkosten[[#This Row],[Bedrag]]*4,IF(Onkosten[[#This Row],[Frequentie]]=\"Kwartaal\",Onkosten[[#This Row],[Bedrag]]/3,IF(Onkosten[[#This Row],[Frequentie]]=\"Elke 6 maanden\",Onkosten[[#This Row],[Bedrag]]/6,IF(Onkosten[[#This Row],[Frequentie]]=\"Jaarlijks\",Onkosten[[#This Row],[Bedrag]]/12,IF(Onkosten[[#This Row],[Frequentie]]=\"Elke andere week\",Onkosten[[#This Row],[Bedrag]]*2,IF(Onkosten[[#This Row],[Frequentie]]=\"Elke andere maand\",Onkosten[[#This Row],[Bedrag]]/2,\"\"))))))),0),\"\"),\"\")","v":{"v":14,"d":"€ 14"}},{"$f":"IF(Onkosten[[#This Row],[Maandelijks bedrag]]<>\"\",Onkosten[[#This Row],[Maandelijks bedrag]]/Inkomsten,\"\")","v":{"v":2.4398745207389336E-3,"d":"0%"}}]
[null,"Lidmaatschap sportschool","Div.",{"v":60,"d":"€ 60"},"Maandelijks",{"$f":"IF(Onkosten[[#This Row],[Bedrag]]>0,IF(Onkosten[[#This Row],[Frequentie]]<>\"\",ROUND(IF(Onkosten[[#This Row],[Frequentie]]=\"Maandelijks\",Onkosten[Bedrag],IF(Onkosten[[#This Row],[Frequentie]]=\"Wekelijks\",Onkosten[[#This Row],[Bedrag]]*4,IF(Onkosten[[#This Row],[Frequentie]]=\"Kwartaal\",Onkosten[[#This Row],[Bedrag]]/3,IF(Onkosten[[#This Row],[Frequentie]]=\"Elke 6 maanden\",Onkosten[[#This Row],[Bedrag]]/6,IF(Onkosten[[#This Row],[Frequentie]]=\"Jaarlijks\",Onkosten[[#This Row],[Bedrag]]/12,IF(Onkosten[[#This Row],[Frequentie]]=\"Elke andere week\",Onkosten[[#This Row],[Bedrag]]*2,IF(Onkosten[[#This Row],[Frequentie]]=\"Elke andere maand\",Onkosten[[#This Row],[Bedrag]]/2,\"\"))))))),0),\"\"),\"\")","v":{"v":60,"d":"€ 60"}},{"$f":"IF(Onkosten[[#This Row],[Maandelijks bedrag]]<>\"\",Onkosten[[#This Row],[Maandelijks bedrag]]/Inkomsten,\"\")","v":{"v":0.010456605088881143,"d":"1%"}}]
[null,"Koptelefoon","Amusement",{"v":50,"d":"€ 50"},"Jaarlijks",{"$f":"IF(Onkosten[[#This Row],[Bedrag]]>0,IF(Onkosten[[#This Row],[Frequentie]]<>\"\",ROUND(IF(Onkosten[[#This Row],[Frequentie]]=\"Maandelijks\",Onkosten[Bedrag],IF(Onkosten[[#This Row],[Frequentie]]=\"Wekelijks\",Onkosten[[#This Row],[Bedrag]]*4,IF(Onkosten[[#This Row],[Frequentie]]=\"Kwartaal\",Onkosten[[#This Row],[Bedrag]]/3,IF(Onkosten[[#This Row],[Frequentie]]=\"Elke 6 maanden\",Onkosten[[#This Row],[Bedrag]]/6,IF(Onkosten[[#This Row],[Frequentie]]=\"Jaarlijks\",Onkosten[[#This Row],[Bedrag]]/12,IF(Onkosten[[#This Row],[Frequentie]]=\"Elke andere week\",Onkosten[[#This Row],[Bedrag]]*2,IF(Onkosten[[#This Row],[Frequentie]]=\"Elke andere maand\",Onkosten[[#This Row],[Bedrag]]/2,\"\"))))))),0),\"\"),\"\")","v":{"v":4,"d":"€ 4"}},{"$f":"IF(Onkosten[[#This Row],[Maandelijks bedrag]]<>\"\",Onkosten[[#This Row],[Maandelijks bedrag]]/Inkomsten,\"\")","v":{"v":6.9710700592540956E-4,"d":"0%"}}]
[null,"Kapper","Div.",{"v":70,"d":"€ 70"},"Maandelijks",{"$f":"IF(Onkosten[[#This Row],[Bedrag]]>0,IF(Onkosten[[#This Row],[Frequentie]]<>\"\",ROUND(IF(Onkosten[[#This Row],[Frequentie]]=\"Maandelijks\",Onkosten[Bedrag],IF(Onkosten[[#This Row],[Frequentie]]=\"Wekelijks\",Onkosten[[#This Row],[Bedrag]]*4,IF(Onkosten[[#This Row],[Frequentie]]=\"Kwartaal\",Onkosten[[#This Row],[Bedrag]]/3,IF(Onkosten[[#This Row],[Frequentie]]=\"Elke 6 maanden\",Onkosten[[#This Row],[Bedrag]]/6,IF(Onkosten[[#This Row],[Frequentie]]=\"Jaarlijks\",Onkosten[[#This Row],[Bedrag]]/12,IF(Onkosten[[#This Row],[Frequentie]]=\"Elke andere week\",Onkosten[[#This Row],[Bedrag]]*2,IF(Onkosten[[#This Row],[Frequentie]]=\"Elke andere maand\",Onkosten[[#This Row],[Bedrag]]/2,\"\"))))))),0),\"\"),\"\")","v":{"v":70,"d":"€ 70"}},{"$f":"IF(Onkosten[[#This Row],[Maandelijks bedrag]]<>\"\",Onkosten[[#This Row],[Maandelijks bedrag]]/Inkomsten,\"\")","v":{"v":0.012199372603694667,"d":"1%"}}]
[null,"Video Games","Amusement",{"v":100,"d":"€ 100"},"Maandelijks",{"$f":"IF(Onkosten[[#This Row],[Bedrag]]>0,IF(Onkosten[[#This Row],[Frequentie]]<>\"\",ROUND(IF(Onkosten[[#This Row],[Frequentie]]=\"Maandelijks\",Onkosten[Bedrag],IF(Onkosten[[#This Row],[Frequentie]]=\"Wekelijks\",Onkosten[[#This Row],[Bedrag]]*4,IF(Onkosten[[#This Row],[Frequentie]]=\"Kwartaal\",Onkosten[[#This Row],[Bedrag]]/3,IF(Onkosten[[#This Row],[Frequentie]]=\"Elke 6 maanden\",Onkosten[[#This Row],[Bedrag]]/6,IF(Onkosten[[#This Row],[Frequentie]]=\"Jaarlijks\",Onkosten[[#This Row],[Bedrag]]/12,IF(Onkosten[[#This Row],[Frequentie]]=\"Elke andere week\",Onkosten[[#This Row],[Bedrag]]*2,IF(Onkosten[[#This Row],[Frequentie]]=\"Elke andere maand\",Onkosten[[#This Row],[Bedrag]]/2,\"\"))))))),0),\"\"),\"\")","v":{"v":100,"d":"€ 100"}},{"$f":"IF(Onkosten[[#This Row],[Maandelijks bedrag]]<>\"\",Onkosten[[#This Row],[Maandelijks bedrag]]/Inkomsten,\"\")","v":{"v":0.01742767514813524,"d":"2%"}}]
[null,"Kleding","Div.",{"v":500,"d":"€ 500"},"Jaarlijks",{"$f":"IF(Onkosten[[#This Row],[Bedrag]]>0,IF(Onkosten[[#This Row],[Frequentie]]<>\"\",ROUND(IF(Onkosten[[#This Row],[Frequentie]]=\"Maandelijks\",Onkosten[Bedrag],IF(Onkosten[[#This Row],[Frequentie]]=\"Wekelijks\",Onkosten[[#This Row],[Bedrag]]*4,IF(Onkosten[[#This Row],[Frequentie]]=\"Kwartaal\",Onkosten[[#This Row],[Bedrag]]/3,IF(Onkosten[[#This Row],[Frequentie]]=\"Elke 6 maanden\",Onkosten[[#This Row],[Bedrag]]/6,IF(Onkosten[[#This Row],[Frequentie]]=\"Jaarlijks\",Onkosten[[#This Row],[Bedrag]]/12,IF(Onkosten[[#This Row],[Frequentie]]=\"Elke andere week\",Onkosten[[#This Row],[Bedrag]]*2,IF(Onkosten[[#This Row],[Frequentie]]=\"Elke andere maand\",Onkosten[[#This Row],[Bedrag]]/2,\"\"))))))),0),\"\"),\"\")","v":{"v":42,"d":"€ 42"}},{"$f":"IF(Onkosten[[#This Row],[Maandelijks bedrag]]<>\"\",Onkosten[[#This Row],[Maandelijks bedrag]]/Inkomsten,\"\")","v":{"v":7.3196235622168E-3,"d":"1%"}}]

{"sheet":"Gegevens","index":2,"n_rows":10,"n_cols":5,"rows_kept":10,"hidden":true}
["Dit blad moet verborgen blijven"]
["Categorieën","Bedrag per categorie","Percentage van totaal","Frequentie","Spaargeld"]
["Huis",{"$f":"IF(SUMIF(Onkosten[Categorie],\"Huis\",Onkosten[Maandelijks bedrag])>0,SUMIF(Onkosten[Categorie],\"Huis\",Onkosten[Maandelijks bedrag]),NA())","v":{"v":1660,"d":"€ 1,660"}},{"$f":"IF(B3>0,B3/Inkomsten,\"\")","v":{"v":0.289299407459045,"d":"29%"}},"Wekelijks",{"$f":"Inkomsten-SUM(Onkosten[Maandelijks bedrag])","v":{"v":2777,"d":"€ 2,777"}}]
["Amusement",{"$f":"IF(SUMIF(Onkosten[Categorie],\"Amusement\",Onkosten[Maandelijks bedrag])>0,SUMIF(Onkosten[Categorie],\"Amusement\",Onkosten[Maandelijks bedrag]),NA())","v":{"v":188,"d":"€ 188"}},{"v":0.03276402927849425,"d":"3%"},"Maandelijks"]
["Vervoer",{"$f":"IF(SUMIF(Onkosten[Categorie],\"Vervoer\",Onkosten[Maandelijks bedrag])>0,SUMIF(Onkosten[Categorie],\"Vervoer\",Onkosten[Maandelijks bedrag]),NA())","v":{"v":350,"d":"€ 350"}},{"v":0.06099686301847333,"d":"6%"},"Kwartaal"]
["Eten en drinken",{"$f":"IF(SUMIF(Onkosten[Categorie],\"Eten en drinken\",Onkosten[Maandelijks bedrag])>0,SUMIF(Onkosten[Categorie],\"Eten en drinken\",Onkosten[Maandelijks bedrag]),NA())","v":{"v":500,"d":"€ 500"}},{"v":0.08713837574067619,"d":"9%"},"Elke 6 maanden"]
["Div.",{"$f":"IF(SUMIF(Onkosten[Categorie],\"Div.\",Onkosten[Maandelijks bedrag])>0,SUMIF(Onkosten[Categorie],\"Div.\",Onkosten[Maandelijks bedrag]),NA())","v":{"v":263,"d":"€ 263"}},{"v":0.04583478563959568,"d":"5%"},"Jaarlijks"]
["Spaargeld",{"$f":"IF(E3>0,E3,NA())","v":{"v":2777,"d":"€ 2,777"}},{"v":0.4839665388637156,"d":"48%"},"Elke andere week"]
[{"$nulls":3},"Elke andere maand"]
[null,"TOTAAL:",{"$f":"SUM(C3:C8)","v":{"v":1,"d":"100%"}}]